fUSD/lending_fUSD_20260427
["ID","MTS","AMOUNT","RATE_DAILY","PERIOD"]
[421213118,1777260654039,-1000.0,0.00022951,8]
[421213119,1777260654050,-1000.0,0.00022951,8]
[421213120,1777260654059,-500.0,0.0002297,2]
[421213121,1777260654069,-1000.0,0.0002297,2]
[421213122,1777260654080,-500.0,0.00023,2]
[421213123,1777260654090,-1394.1,0.00023013,2]
[421213124,1777260654101,-500.0,0.0002303,7]
[421213125,1777260654111,-1220.0,0.00023163,2]
[421213126,1777260654121,-3531.0,0.00023163,2]
[421213127,1777260654131,-150.0,0.0002326,21]
[421213128,1777260654141,-1117.0,0.00023778,2]
[421213129,1777260654151,-150.0,0.00023796,2]
[421213130,1777260654161,-1100.0,0.00023852,7]
[421213131,1777260654171,-312.35,0.000239,2]
[421213132,1777260654181,-348.87,0.000239,2]
[421213133,1777260654191,-323.45,0.000239,2]
[421213134,1777260654201,-719.04747942,0.00024006,2]
[421213135,1777260654211,-747.8093786,0.00024006,2]
[421213136,1777260654220,-160.0,0.000246,15]
[421213137,1777260654230,-2112.0,0.0002463,2]
[421213138,1777260654240,-500.0,0.00024654,2]
[421213139,1777260654250,-150.0,0.00024658,2]
[421213140,1777260654259,-805.67753,0.00024658,2]
[421213141,1777260654269,-805.67753,0.00024658,2]
[421213142,1777260654279,-805.67753,0.00024658,2]
[421213143,1777260654288,-805.67753,0.00024658,2]
[421213144,1777260654298,-805.67753,0.00024658,2]
[421213145,1777260654308,-805.67753,0.00024658,2]
[421213146,1777260654318,-805.67753,0.00024658,2]
[421213147,1777260654327,-805.67753,0.00024658,2]
[421213148,1777260654337,-805.67753,0.00024658,2]
[421213149,1777260654347,-805.67753,0.00024658,2]
[421213150,1777260654357,-805.67753,0.00024658,2]
[421213151,1777260654367,-805.67753,0.00024658,2]
[421213152,1777260654377,-805.67753,0.00024658,2]
[421213153,1777260654387,-805.67753,0.00024658,2]
[421213154,1777260654403,-805.67753,0.00024658,2]
[421213155,1777260654413,-805.67753,0.00024658,2]
[421213156,1777260654423,-805.67753,0.00024658,2]
[421213157,1777260654433,-805.67753,0.00024658,2]
[421213158,1777260654444,-805.67753,0.00024658,2]
[421213159,1777260654455,-805.677529,0.00024658,2]
[421213160,1777260654465,-150.0,0.00024658,2]
[421213161,1777260654475,-233.52279966,0.00024658,2]
[421213162,1777260654485,-150.0,0.00024658,2]
[421213163,1777260654495,-155.25,0.00024736,2]
[421213164,1777260654505,-8572.236162,0.000249,2]
[421213165,1777260654515,-1117.0,0.00024966,2]
[421213166,1777260654525,-200603.96,0.00025,7]
[421213167,1777260654536,-160.0,0.00025,7]
[421213168,1777260654546,-179.04,0.00025,7]
[421213169,1777260654557,-162.27045424,0.00025,7]
[421213170,1777260654567,-550.0,0.00025,2]
[421213171,1777260654577,-160.0,0.00025,7]
[421213172,1777260654587,-150.0,0.00025,2]
[421213173,1777260654597,-150.0,0.00025,2]
[421213174,1777260654607,-150.0,0.00025,2]
[421213175,1777260654617,-150.0,0.00025,2]
[421213176,1777260654627,-150.0,0.00025,2]
[421213177,1777260654638,-150.0,0.00025,2]
[421213178,1777260654648,-150.0,0.00025,2]
[421213179,1777260654658,-150.0,0.00025,2]
[421213180,1777260654668,-150.0,0.00025,2]
[421213181,1777260654678,-150.0,0.00025,2]
[421213182,1777260654687,-150.0,0.00025,2]
[421213183,1777260654698,-1394.1,0.00025205,2]
[421213184,1777260654707,-250.0,0.00025205,2]
[421213185,1777260654717,-500.0,0.00025222,7]
[421213186,1777260654727,-297.24508202,0.0002525,2]
[421213187,1777260654737,-2580.07340547,0.0002545,2]
[421213188,1777260654747,-13845.82178511,0.0002545,2]
[421213189,1777260654757,-150.0,0.00025675,2]
[421213190,1777260654767,-206.07,0.0002572,2]
[421213191,1777260654777,-350.0,0.00025753,2]
[421213192,1777260654787,-4404.7375801,0.0002577,2]
[421213193,1777260654797,-160.0,0.000258,7]
[421213194,1777260654807,-162.27045424,0.000258,7]
[421213195,1777260654817,-160.0,0.000258,7]
[421213196,1777260654828,-638.53,0.00025823,2]
[421213197,1777260654838,-17459.75162975,0.0002589,5]
[421213198,1777260654848,-444.3,0.00025998,2]
[421213199,1777260654858,-474.28,0.00025998,2]
[421213200,1777260654868,-475.35,0.00025998,2]
[421213201,1777260654879,-486.96950967,0.00025998,2]
[421213202,1777260654888,-4969.62970892,0.00026033,60]
[421213203,1777260654898,-1100.0,0.00026044,7]
[421213204,1777260654908,-1220.0,0.00026163,2]
[421213205,1777260654918,-3531.0,0.00026163,2]
[421213206,1777260654928,-1117.0,0.00026215,2]
[421213207,1777260654938,-450.0,0.00026301,2]
[421213208,1777260654948,-162.27045424,0.000265,7]
[421213209,1777260654958,-160.0,0.000265,7]
[421213210,1777260654968,-2981.77782535,0.00026553,60]
[421213211,1777260655205,-150.0,0.00026614,2]
[421213212,1777260655216,-475.35,0.00026648,2]
[421213213,1777260655226,-775.47832561,0.00026745,2]
[421213214,1777260655235,-745.65223616,0.00026745,2]
[421213215,1777260655246,-550.0,0.00026849,2]
[421213216,1777260655256,-614.79,0.000269,15]
[421213217,1777260655265,-104253.0,0.000269,2]
[421213218,1777260655275,-600.0,0.00027,2]
[421213219,1777260655285,-475.38,0.00027298,2]
[421213220,1777260655294,-1987.85188357,0.00027334,60]
[421213221,1777260655304,-500.0,0.00027393,2]
[421213222,1777260655313,-1394.1,0.00027397,2]
[421213223,1777260655323,-573.50540238,0.00027397,2]
[421213224,1777260655332,-500.0,0.00027397,2]
[421213225,1777260655342,-1500.0,0.00027397,2]
[421213226,1777260655351,-653.24859229,0.00027397,5]
[421213227,1777260655361,-151.0,0.00027397,2]
[421213228,1777260655369,-151.0,0.00027397,2]
[421213229,1777260655379,-151.0,0.00027397,2]
[421213230,1777260655389,-151.0,0.00027397,2]
[421213231,1777260655399,-151.0,0.00027397,2]
[421213232,1777260655408,-151.0,0.00027397,2]
[421213233,1777260655417,-151.0,0.00027397,2]
[421213234,1777260655426,-151.0,0.00027397,2]
[421213235,1777260655437,-151.0,0.00027397,2]
[421213236,1777260655449,-151.0,0.00027397,2]
[421213237,1777260655459,-151.0,0.00027397,2]
[421213238,1777260655468,-151.0,0.00027397,2]
[421213239,1777260655478,-151.0,0.00027397,2]
[421213240,1777260655487,-151.0,0.00027397,2]
[421213241,1777260655496,-151.0,0.00027397,2]
[421213242,1777260655506,-151.0,0.00027397,2]
[421213243,1777260655515,-151.0,0.00027397,2]
[421213244,1777260655525,-151.0,0.00027397,2]
[421213245,1777260655534,-157.297292,0.00027397,2]
[421213246,1777260655544,-1459.736675,0.00027397,2]
[421213247,1777260655554,-1459.736675,0.00027397,2]
[421213248,1777260655566,-1459.736675,0.00027397,2]
[421213249,1777260655576,-1459.736675,0.00027397,2]
[421213250,1777260655585,-1459.736675,0.00027397,2]
[421213251,1777260655595,-1459.736675,0.00027397,2]
[421213252,1777260655604,-1459.736675,0.00027397,2]
[421213253,1777260655613,-1459.736675,0.00027397,2]
[421213254,1777260655622,-1459.736675,0.00027397,2]
[421213255,1777260655631,-1459.736675,0.00027397,2]
[421213256,1777260655640,-1459.736675,0.00027397,2]
[421213257,1777260655650,-1459.736675,0.00027397,2]
[421213258,1777260655659,-1459.736675,0.00027397,2]
[421213259,1777260655669,-1459.736675,0.00027397,2]
[421213260,1777260655678,-1459.736675,0.00027397,2]
[421213261,1777260655687,-1459.736675,0.00027397,2]
[421213262,1777260655697,-1459.736675,0.00027397,2]
[421213263,1777260655706,-1459.736675,0.00027397,2]
[421213264,1777260655716,-1459.736675,0.00027397,2]
[421213265,1777260655725,-1459.736682,0.00027397,2]
[421213266,1777260655735,-426.506227,0.00027397,2]
[421213267,1777260655744,-426.506227,0.00027397,2]
[421213268,1777260655754,-426.506227,0.00027397,2]
[421213269,1777260655763,-426.506227,0.00027397,2]
[421213270,1777260655772,-426.506227,0.00027397,2]
[421213271,1777260655781,-426.506227,0.00027397,2]
[421213272,1777260655790,-426.506227,0.00027397,2]
[421213273,1777260655800,-426.506227,0.00027397,2]
[421213274,1777260655809,-426.506227,0.00027397,2]
[421213275,1777260655818,-426.506227,0.00027397,2]
[421213276,1777260655827,-426.506227,0.00027397,2]
[421213277,1777260655837,-426.506227,0.00027397,2]
[421213278,1777260655846,-426.506227,0.00027397,2]
[421213279,1777260655856,-426.506227,0.00027397,2]
[421213280,1777260655866,-426.506227,0.00027397,2]
[421213281,1777260655875,-426.506227,0.00027397,2]
[421213282,1777260655884,-426.506227,0.00027397,2]
[421213283,1777260655894,-426.506227,0.00027397,2]
[421213284,1777260655903,-426.506227,0.00027397,2]
[421213285,1777260655913,-426.506219,0.00027397,2]
[421213286,1777260655922,-1009.974664,0.00027397,2]
[421213287,1777260655932,-1009.974664,0.00027397,2]
[421213288,1777260655941,-1009.974664,0.00027397,2]
[421213289,1777260655951,-1009.974664,0.00027397,2]
[421213290,1777260655960,-1009.974664,0.00027397,2]
[421213291,1777260655969,-1009.974664,0.00027397,2]
[421213292,1777260655979,-1009.974664,0.00027397,2]
[421213293,1777260655988,-1009.974664,0.00027397,2]
[421213294,1777260655997,-1009.974664,0.00027397,2]
[421213295,1777260656007,-1009.974664,0.00027397,2]
[421213296,1777260656019,-1009.974664,0.00027397,2]
[421213297,1777260656029,-1009.974664,0.00027397,2]
[421213298,1777260656038,-1009.974664,0.00027397,2]
[421213299,1777260656048,-1009.974664,0.00027397,2]
[421213300,1777260656058,-1009.974664,0.00027397,2]
[421213301,1777260656068,-1009.974664,0.00027397,2]
[421213302,1777260656077,-1009.974664,0.00027397,2]
[421213303,1777260656086,-1009.974664,0.00027397,2]
[421213304,1777260656096,-1009.974664,0.00027397,2]
[421213305,1777260656105,-1009.974657,0.00027397,2]
[421213306,1777260656115,-1563.157151,0.00027397,2]
[421213307,1777260656124,-1282.0,0.00027397,15]
[421213308,1777260656133,-12863.44,0.000274,7]
[421213309,1777260656143,-2809.29,0.000274,14]
[421213310,1777260656152,-500.0,0.00027414,21]
[421213311,1777260656162,-500.0,0.00027452,2]
[421213312,1777260656172,-500.0,0.00027507,2]
[421213313,1777260656181,-1117.0,0.00027525,5]
[421213314,1777260656190,-479.7577542,0.00027553,2]
[421213315,1777260656200,-155.25,0.00027554,2]
[421213316,1777260656210,-500.0,0.00027562,2]
[421213317,1777260656219,-500.0,0.00027617,2]
[421213318,1777260656228,-1282.0,0.00027671,15]
[421213319,1777260656237,-500.0,0.00027672,2]
[421213320,1777260656246,-12863.44,0.000277,7]
[421213321,1777260656255,-2809.29,0.000277,14]
[421213322,1777260656265,-5529.0,0.000277,3]
[421213323,1777260656274,-500.0,0.00027727,2]
[421213324,1777260656283,-500.0,0.00027782,2]
[421213325,1777260656292,-500.0,0.00027837,2]
[421213326,1777260656302,-500.0,0.00027892,2]
[421213327,1777260656311,-1282.0,0.00027945,15]
[421213328,1777260656321,-500.0,0.00027947,2]
[421213329,1777260656330,-12863.44,0.00028,7]
[421213330,1777260656339,-160.0,0.00028,10]
[421213331,1777260656348,-160.0,0.00028,3]
[421213332,1777260656358,-186.14,0.00028,2]
[421213333,1777260656367,-186.14,0.00028,2]
[421213334,1777260656376,-186.14,0.00028,2]
[421213335,1777260656386,-186.14,0.00028,2]
[421213336,1777260656395,-500.0,0.00028002,2]
[421213337,1777260656404,-500.0,0.00028057,2]
[421213338,1777260656414,-500.0,0.00028112,2]
[421213339,1777260656423,-500.0,0.00028167,2]
[421213340,1777260656433,-1282.0,0.00028219,15]
[421213341,1777260656443,-500.0,0.00028222,2]
[421213342,1777260656452,-221.89015773,0.00028228,2]
[421213343,1777260656461,-1100.0,0.00028236,21]
[421213344,1777260656473,-12863.44,0.000283,7]
[421213345,1777260656483,-5529.0,0.000284,5]
[421213346,1777260656492,-150.0,0.00028493,30]
[421213347,1777260656502,-157.74,0.00028493,2]
[421213348,1777260656511,-1282.0,0.00028493,15]
[421213349,1777260656521,-1282.0,0.00028767,15]
[421213350,1777260656530,-1317.67,0.000288,20]
[421213351,1777260656540,-420.78,0.000288,20]
[421213352,1777260656550,-1117.0,0.00028902,5]
[421213353,1777260656559,-650.0,0.00029,2]
[421213354,1777260656569,-1282.0,0.00029041,15]
[421213355,1777260656578,-500.0,0.00029058,21]
[421213356,1777260656589,-1220.0,0.00029163,2]
[421213357,1777260656598,-224.643,0.00029163,2]
[421213358,1777260656608,-1282.0,0.00029315,15]
[421213359,1777260656617,-804.17102365,0.00029484,2]
[421213360,1777260656626,-773.2413689,0.00029484,2]
[421213361,1777260656636,-1542.538417,0.000295,2]
[421213362,1777260656645,-1394.1,0.00029589,2]
[421213363,1777260656654,-1282.0,0.00029589,15]
[421213364,1777260656664,-614.79,0.000298,20]
[421213365,1777260656673,-506.0,0.00029877,2]
[421213366,1777260656682,-1100.0,0.0002988,21]
[421213367,1777260656691,-2940.22552673,0.000299,2]
[421213368,1777260656701,-12863.44,0.0003,7]
[421213369,1777260656710,-2809.29,0.0003,14]
[421213370,1777260656719,-193.155,0.0003,22]
[421213371,1777260656728,-1500.0,0.0003,2]
[421213372,1777260656738,-1000.0,0.0003,14]
[421213373,1777260656748,-500.0,0.00030132,2]
[421213374,1777260656758,-1522.12758958,0.00030234,30]
[421213375,1777260656768,-1117.0,0.00030347,5]
[421213376,1777260656777,-4404.7375801,0.00030389,2]
[421213377,1777260656786,-150.0,0.00030466,30]
[421213378,1777260656797,-500.0,0.00030702,21]
[421213379,1777260656807,-570.55,0.0003076,2]
[421213380,1777260656816,-1317.67,0.000309,14]
[421213381,1777260656826,-420.78,0.000309,14]
[421213382,1777260656836,-700.0,0.00031,2]
[421213383,1777260656845,-506.0,0.00031231,3]
[421213384,1777260656854,-150.0,0.00031452,22]
[421213385,1777260656866,-1071.8012335,0.00031458,5]
[421213386,1777260656875,-1114.80753284,0.00031458,5]
[421213387,1777260656885,-1101.11886828,0.00031458,5]
[421213388,1777260656895,-1039.2754072,0.00031458,5]
[421213389,1777260656905,-1014.46623518,0.00031458,5]
[421213390,1777260656915,-1040.89285322,0.00031458,5]
[421213391,1777260656925,-1135.87345457,0.00031458,5]
[421213392,1777260656935,-1072.50166214,0.00031458,5]
[421213393,1777260656945,-1026.58809951,0.00031458,5]
[421213394,1777260656956,-1070.25086144,0.00031458,5]
[421213395,1777260656965,-1145.89233523,0.00031458,5]
[421213396,1777260656975,-1116.72459193,0.00031458,5]
[421213397,1777260656985,-1136.34884265,0.00031458,5]
[421213398,1777260656995,-1144.63040299,0.00031458,5]
[421213399,1777260657004,-1111.43057639,0.00031458,5]
[421213400,1777260657014,-1130.8382403,0.00031458,5]
[421213401,1777260657023,-1129.0439315,0.00031458,5]
[421213402,1777260657033,-1015.64159329,0.00031458,5]
[421213403,1777260657042,-1065.73786094,0.00031458,5]
[421213404,1777260657052,-1114.37240836,0.00031458,5]
[421213405,1777260657061,-1009.17577373,0.00031458,5]
[421213406,1777260657070,-1004.30378449,0.00031458,5]
[421213407,1777260657080,-1025.90864844,0.00031458,5]
[421213408,1777260657088,-1014.82513592,0.00031458,5]
[421213409,1777260657098,-1148.24730133,0.00031458,5]
[421213410,1777260657107,-1017.39529788,0.00031458,5]
[421213411,1777260657116,-1126.17950652,0.00031458,5]
[421213412,1777260657125,-1093.10139249,0.00031458,5]
[421213413,1777260657135,-1100.0,0.00031524,21]
[421213414,1777260657144,-238.0,0.00031535,30]
[421213415,1777260657154,-311.0,0.00031535,30]
[421213416,1777260657163,-329.0,0.00031535,30]
[421213417,1777260657172,-164.0,0.00031535,30]
[421213418,1777260657183,-157.0,0.00031535,30]
[421213419,1777260657193,-771.0,0.00031535,30]
[421213420,1777260657203,-155.0,0.00031535,30]
[421213421,1777260657212,-157.0,0.00031535,30]
[421213422,1777260657222,-385.0,0.00031551,30]
[421213423,1777260657231,-316.0,0.00031551,30]
[421213424,1777260657240,-2331.0,0.00031551,30]
[421213425,1777260657248,-568.31,0.00031579,2]
[421213426,1777260657258,-1000.0,0.00031681,2]
[421213427,1777260657267,-1000.0,0.00031703,2]
[421213428,1777260657276,-1000.0,0.00031709,2]
[421213429,1777260657285,-1000.0,0.00031752,2]
[421213430,1777260657294,-1394.1,0.0003178,2]
[421213431,1777260657303,-1000.0,0.00031785,2]
[421213432,1777260657313,-1000.0,0.00031835,2]
[421213433,1777260657323,-1117.0,0.00031864,5]
[421213434,1777260657332,-1000.0,0.00031885,2]
[421213435,1777260657341,-1000.0,0.00031902,2]
[421213436,1777260657351,-1000.0,0.00031962,2]
[421213437,1777260657361,-1000.0,0.00031965,2]
[421213438,1777260657371,-1000.0,0.00031981,2]
[421213439,1777260657380,-1000.0,0.00031995,2]
[421213440,1777260657399,-1000.0,0.00031999,2]
[421213441,1777260657409,-1000.0,0.00032004,2]
[421213442,1777260657419,-1000.0,0.0003207,2]
[421213443,1777260657428,-1000.0,0.00032094,2]
[421213444,1777260657438,-150.0,0.000321,30]
[421213445,1777260657446,-1000.0,0.00032116,2]
[421213446,1777260657456,-1000.0,0.00032157,2]
[421213447,1777260657465,-1220.0,0.00032163,2]
[421213448,1777260657475,-1000.0,0.00032179,2]
[421213449,1777260657484,-1000.0,0.0003218,2]
[421213450,1777260657493,-1000.0,0.00032191,2]
[421213451,1777260657502,-1000.0,0.00032195,2]
[421213452,1777260657512,-1000.0,0.00032199,2]
[421213453,1777260657522,-1000.0,0.00032205,2]
[421213454,1777260657532,-150.0,0.00032219,2]
[421213455,1777260657541,-1134.595998,0.00032219,20]
[421213456,1777260657550,-1081.78531854,0.00032219,20]
[421213457,1777260657559,-1084.19341681,0.00032219,20]
[421213458,1777260657569,-1090.95984975,0.00032219,20]
[421213459,1777260657578,-1111.10115192,0.00032219,20]
[421213460,1777260657587,-1113.05505262,0.00032219,20]
[421213461,1777260657597,-1722.21682037,0.00032219,20]
[421213462,1777260657607,-833.92535153,0.00032223,2]
[421213463,1777260657616,-801.85129955,0.00032223,2]
[421213464,1777260657625,-1000.0,0.00032243,2]
[421213465,1777260657634,-1000.0,0.00032256,2]
[421213466,1777260657643,-1000.0,0.00032257,2]
[421213467,1777260657652,-1000.0,0.00032263,2]
[421213468,1777260657662,-1000.0,0.00032267,2]
[421213469,1777260657671,-1000.0,0.00032278,2]
[421213470,1777260657680,-1000.0,0.00032286,2]
[421213471,1777260657689,-1000.0,0.00032287,2]
[421213472,1777260657698,-1000.0,0.00032303,2]
[421213473,1777260657708,-1000.0,0.00032304,2]
[421213474,1777260657718,-1000.0,0.00032318,2]
[421213475,1777260657727,-1000.0,0.00032332,2]
[421213476,1777260657737,-2550.0,0.00032334,2]
[421213477,1777260657746,-900.0,0.00032334,7]
[421213478,1777260657756,-500.0,0.00032346,21]
[421213479,1777260657766,-1000.0,0.00032346,2]
[421213480,1777260657776,-500.0,0.00032352,60]
[421213481,1777260657785,-888.2241999,0.00032352,60]
[421213482,1777260657795,-500.0,0.00032352,60]
[421213483,1777260657804,-500.0,0.00032352,60]
[421213484,1777260657814,-500.0,0.00032352,60]
[421213485,1777260657823,-500.0,0.00032352,60]
[421213486,1777260657833,-500.0,0.00032352,60]
[421213487,1777260657842,-500.0,0.00032352,60]
[421213488,1777260657852,-500.0,0.00032352,60]
[421213489,1777260657862,-500.0,0.00032352,60]
[421213490,1777260657871,-500.0,0.00032352,60]
[421213491,1777260657880,-500.0,0.00032352,60]
[421213492,1777260657890,-500.0,0.00032352,60]
[421213493,1777260657899,-633.0940006,0.00032352,60]
[421213494,1777260657909,-500.0,0.00032352,60]
[421213495,1777260657918,-500.0,0.00032352,60]
[421213496,1777260657928,-500.0,0.00032352,60]
[421213497,1777260657937,-500.0,0.00032352,60]
[421213498,1777260657947,-663.8120227,0.00032352,60]
[421213499,1777260657956,-182.6816936,0.00032352,60]
[421213500,1777260657966,-365.0034862,0.00032352,60]
[421213501,1777260657976,-500.0,0.00032352,60]
[421213502,1777260657985,-500.0,0.00032352,60]
[421213503,1777260657994,-500.0,0.00032352,60]
[421213504,1777260658005,-500.0,0.00032352,60]
[421213505,1777260658014,-500.0,0.00032352,60]
[421213506,1777260658023,-500.0,0.00032352,60]
[421213507,1777260658032,-500.0,0.00032352,60]
[421213508,1777260658042,-655.0897508,0.00032352,60]
[421213509,1777260658051,-500.0,0.00032352,60]
[421213510,1777260658061,-500.0,0.00032352,60]
[421213511,1777260658070,-500.0,0.00032352,60]
[421213512,1777260658079,-500.0,0.00032352,60]
[421213513,1777260658089,-500.0,0.00032352,60]
[421213514,1777260658098,-268.114616,0.00032352,60]
[421213515,1777260658107,-660.3759401,0.00032352,60]
[421213516,1777260658116,-559.5620656,0.00032352,60]
[421213517,1777260658126,-500.0,0.00032352,60]
[421213518,1777260658136,-500.0,0.00032352,60]
[421213519,1777260658145,-500.0,0.00032352,60]
[421213520,1777260658154,-500.0,0.00032352,60]
[421213521,1777260658164,-500.0,0.00032352,60]
[421213522,1777260658174,-500.0,0.00032352,60]
[421213523,1777260658184,-500.0,0.00032352,60]
[421213524,1777260658194,-526.4693985,0.00032352,60]
[421213525,1777260658204,-500.0,0.00032352,60]
[421213526,1777260658213,-500.0,0.00032352,60]
[421213527,1777260658223,-500.0,0.00032352,60]
[421213528,1777260658232,-500.0,0.00032352,60]
[421213529,1777260658242,-500.0,0.00032352,60]
[421213530,1777260658252,-935.0700994,0.00032352,60]
[421213531,1777260658262,-500.0,0.00032352,60]
[421213532,1777260658271,-500.0,0.00032352,60]
[421213533,1777260658281,-500.0,0.00032352,60]
[421213534,1777260658290,-500.0,0.00032352,60]
[421213535,1777260658300,-500.0,0.00032352,60]
[421213536,1777260658310,-500.0,0.00032352,60]
[421213537,1777260658319,-500.0,0.00032352,60]
[421213538,1777260658329,-700.0,0.00032352,60]
[421213539,1777260658338,-500.0,0.00032352,60]
[421213540,1777260658347,-700.0,0.00032352,60]
[421213541,1777260658356,-500.0,0.00032352,60]
[421213542,1777260658366,-700.0,0.00032352,60]
[421213543,1777260658375,-500.0,0.00032352,60]
[421213544,1777260658384,-700.0,0.00032352,60]
[421213545,1777260658393,-500.0,0.00032352,60]
[421213546,1777260658402,-700.0,0.00032352,60]
[421213547,1777260658411,-500.0,0.00032352,60]
[421213548,1777260658420,-700.0,0.00032352,60]
[421213549,1777260658430,-500.0,0.00032352,60]
[421213550,1777260658439,-700.0,0.00032352,60]
[421213551,1777260658448,-500.0,0.00032352,60]
[421213552,1777260658458,-700.0,0.00032352,60]
[421213553,1777260658468,-500.0,0.00032352,60]
[421213554,1777260658477,-700.0,0.00032352,60]
[421213555,1777260658486,-500.0,0.00032352,60]
[421213556,1777260658495,-379.62068725,0.00032352,60]
[421213557,1777260659602,-320.37931275,0.00032352,60]
[421213558,1777260659612,-500.0,0.00032352,60]
[421213559,1777260659621,-343.45603675,0.00032352,60]
[421213560,1777260659633,-356.54396325,0.00032352,60]
[421213561,1777260659642,-141.26904075,0.00032352,60]
[421213562,1777260660009,162.68841931,0.000321,120]
[421213563,1777260660129,-290.0143859,8.12e-05,2]
[421213564,1777260660181,-373.8208804,8.12e-05,2]
[421213565,1777260660197,-1811.1647337,8.12e-05,2]
[421213566,1777260660207,-779.80414719,0.0001112,2]
[421213567,1777260660576,-162.0,9.5e-05,2]
[421213568,1777260660585,-347.0,0.0001112,2]
[421213569,1777260660597,-1348.19585281,0.0001112,2]
[421213570,1777260660606,-31.5124287,0.0001412,2]
[421213571,1777260660618,-2443.4875713,0.0001412,2]
[421213572,1777260660628,-1194.48246622,0.0001712,2]
[421213573,1777260660650,-1280.51753378,0.0001712,2]
[421213574,1777260660660,-871.875271,0.0002,2]
[421213575,1777260660669,-1529.64841224,0.0002012,2]
[421213576,1777260660681,-945.35158776,0.0002012,2]
[421213577,1777260660690,-150.0,0.00021918,2]
[421213578,1777260660699,-150.0,0.00021918,2]
[421213579,1777260660708,-150.0,0.00021918,2]
[421213580,1777260660718,-2475.0,0.0002312,2]
[421213581,1777260660728,-2475.0,0.0002612,2]
[421213582,1777260660737,-1563.157151,0.00027397,2]
[421213583,1777260660746,-1563.157151,0.00027397,2]
[421213584,1777260660755,-1563.157151,0.00027397,2]
[421213585,1777260660765,-1563.157151,0.00027397,2]
[421213586,1777260660774,-1563.157151,0.00027397,2]
[421213587,1777260660783,-1563.157151,0.00027397,2]
[421213588,1777260660793,-1563.157151,0.00027397,2]
[421213589,1777260660803,-1563.157151,0.00027397,2]
[421213590,1777260660814,-1563.157151,0.00027397,2]
[421213591,1777260660824,-1563.157151,0.00027397,2]
[421213592,1777260660833,-1563.157151,0.00027397,2]
[421213593,1777260660843,-1563.157151,0.00027397,2]
[421213594,1777260660853,-1563.157151,0.00027397,2]
[421213595,1777260660862,-2475.0,0.0002912,2]
[421213596,1777260661299,-358.73095925,0.00032352,60]
[421213597,1777260661310,-500.0,0.00032352,60]
[421213598,1777260661320,-500.0,0.00032352,60]
[421213599,1777260661329,-500.0,0.00032352,60]
[421213600,1777260661339,-592.8727833,0.00032352,60]
[421213601,1777260661348,-700.0,0.00032352,60]
[421213602,1777260661358,-700.0,0.00032352,60]
[421213603,1777260661371,-700.0,0.00032352,60]
[421213604,1777260661380,-700.0,0.00032352,60]
[421213605,1777260661390,-700.0,0.00032352,60]
[421213606,1777260661399,-700.0,0.00032352,60]
[421213607,1777260661409,-700.0,0.00032352,60]
[421213608,1777260661418,-700.0,0.00032352,60]
[421213609,1777260661428,-700.0,0.00032352,60]
[421213610,1777260661437,-700.0,0.00032352,60]
[421213611,1777260661446,-700.0,0.00032352,60]
[421213612,1777260661455,-700.0,0.00032352,60]
[421213613,1777260661465,-700.0,0.00032352,60]
[421213614,1777260661474,-700.0,0.00032352,60]
[421213615,1777260661483,-700.0,0.00032352,60]
[421213616,1777260661492,-700.0,0.00032352,60]
[421213617,1777260661502,-700.0,0.00032352,60]